[Event "Deutscher Jugend Online Cup 2020"]
[Site "Tornelo"]
[Date "2020.11.14"]
[Round "7.7"]
[White "Haug, Mara"]
[Black "Wartenberg, Alissa"]
[Result "1-0"]
[ECO "C50"]
[WhiteElo "1356"]
[BlackElo "1463"]
[Annotator "NA RC"]
[PlyCount "51"]
[EventDate "2020.11.13"]
[EventType "k.o."]
[SourceTitle "playchess.com"]
[Source "ChessBase"]
[SourceQuality "1"]
[TimeControl "600+3"]

1. e4 {[%emt 0:00:00]} e5 {[%emt 0:00:04]} 2. Nf3 {[%emt 0:00:10]} Nc6 {[%emt 0:00:12]} 3. Bc4 {[%emt 0:00:03]} Bc5 {[%emt 0:00:05]} 4. O-O {[%emt 0:00:03]} Nf6 {[%emt 0:00:08]} 5. d4 {[%emt 0:00:02]} Bxd4 {[%emt 0:00:04]} 6. Nxd4 {[%emt 0:00:03]} Nxd4 {[%emt 0:00:02]} 7. Bg5 {[%emt 0:00:04]} d6 {[%emt 0:00:02]} 8. f4 {[%emt 0:00:03]} Qe7 {[%emt 0:00:04]} 9. fxe5 {[%emt 0:00:03]} dxe5 {[%emt 0:00:02]} 10. Kh1 {[%emt 0:00:03]} Rg8 {[%emt 0:00:06]} 11. Nc3 {[%emt 0:00:09]} Be6 {[%emt 0:00:18]} 12. Bxe6 {[%emt 0:00:47]} Nxe6 {[%emt 0:00:36]} 13. Nd5 {[%emt 0:00:14]} Qc5 {[%emt 0:01:53]} 14. Bxf6 {[%emt 0:00:16]} gxf6 {[%emt 0:00:26]} 15. Nxf6+ {[%emt 0:00:03]} Ke7 {[%emt 0:00:09]} 16. Qd7+ {[%emt 0:00:21]} Kf8 {[%emt 0:00:17]} 17. Nxg8 {[%emt 0:00:23]} Kxg8 {[%emt 0:00:11]} 18. Qxf7+ {[%emt 0:00:05]} Kh8 {[%emt 0:00:02]} 19. Qxe6 {[%emt 0:00:08]} Qxc2 {[%emt 0:01:21]} 20. Qxe5+ {[%emt 0:00:07]} Kg8 {[%emt 0:00:06]} 21. Qg5+ {[%emt 0:00:15]} Kh8 {[%emt 0:00:03]} 22. Qf6+ {[%emt 0:00:04]} Kg8 {[%emt 0:00:03]} 23. Qf7+ {[%emt 0:00:10]} Kh8 {[%emt 0:00:03]} 24. Rf2 {[%emt 0:00:29]} Qxe4 {[%emt 0:00:06]} 25. Raf1 {[%emt 0:00:05]} Qb4 {[%emt 0:00:35]} 26. Qxc7 {[%emt 0:00:09]} 1-0

[Event "Deutscher Jugend Online Cup 2020"]
[Site "Tornelo"]
[Date "2020.11.14"]
[Round "8.5"]
[White "Bildat, Emilia"]
[Black "Zhou, Lepu Coco"]
[Result "1-0"]
[ECO "A11"]
[WhiteElo "1852"]
[BlackElo "1882"]
[Annotator "NA"]
[PlyCount "87"]
[EventDate "2020.11.13"]
[EventType "k.o."]
[SourceTitle "playchess.com"]
[Source "ChessBase"]
[SourceQuality "1"]
[TimeControl "600+3"]

1. c4 {[%emt 0:05:06]} Nf6 {[%emt 0:06:06]} 2. g3 {[%emt 0:00:04]} c6 {[%emt 0:00:07]} 3. Bg2 {[%emt 0:00:04]} d5 {[%emt 0:00:05]} 4. Nf3 {[%emt 0:00:05]} dxc4 {[%emt 0:00:05]} 5. Na3 {[%emt 0:00:04]} b5 {[%emt 0:00:13]} 6. O-O {[%emt 0:00:11]} a6 {[%emt 0:00:23]} 7. Ne5 {[%emt 0:00:16]} Bb7 {[%emt 0:00:13]} 8. d3 {[%emt 0:00:19]} cxd3 {[%emt 0:00:07]} 9. Nxd3 {[%emt 0:00:10]} e6 {[%emt 0:00:05]} 10. Be3 {[%emt 0:00:07]} Bxa3 {[%emt 0:00:06]} 11. bxa3 {[%emt 0:00:05]} O-O {[%emt 0:00:06]} 12. Rc1 {[%emt 0:00:06]} Nd5 {[%emt 0:00:13]} 13. Bc5 {[%emt 0:00:07]} Re8 {[%emt 0:00:09]} 14. Bd4 {[%emt 0:00:20]} Nd7 {[%emt 0:00:09]} 15. Nc5 {[%emt 0:00:07]} Nxc5 {[%emt 0:00:19]} 16. Rxc5 {[%emt 0:00:07]} e5 {[%emt 0:00:10]} 17. Bb2 {[%emt 0:00:16]} Qb6 {[%emt 0:00:12]} 18. Qc2 {[%emt 0:00:09]} Rad8 {[%emt 0:00:08]} 19. Rc1 {[%emt 0:00:11]} f6 {[%emt 0:00:21]} 20. Bxd5+ {[%emt 0:00:49]} Rxd5 {[%emt 0:00:07]} 21. Rxd5 {[%emt 0:00:09]} cxd5 {[%emt 0:00:05]} 22. Qc7 {[%emt 0:00:06]} Qxc7 {[%emt 0:00:14]} 23. Rxc7 {[%emt 0:00:05]} Bc8 {[%emt 0:00:07]} 24. Bc3 {[%emt 0:00:07]} d4 {[%emt 0:00:06]} 25. Bb4 {[%emt 0:00:07]} Be6 {[%emt 0:00:05]} 26. Rc6 {[%emt 0:00:05]} Bxa2 {[%emt 0:00:05]} 27. Rxa6 {[%emt 0:00:05]} Bc4 {[%emt 0:00:05]} 28. Rc6 {[%emt 0:00:06]} Bxe2 {[%emt 0:00:07]} 29. Rc2 {[%emt 0:00:09]} d3 {[%emt 0:00:06]} 30. Rc5 {[%emt 0:00:09]} Rd8 {[%emt 0:00:17]} 31. Bd2 {[%emt 0:00:05]} Ra8 {[%emt 0:00:05]} 32. Rc3 {[%emt 0:00:08]} Kf7 {[%emt 0:00:12]} 33. Rc7+ {[%emt 0:00:08]} Kg6 {[%emt 0:00:07]} 34. Rc3 {[%emt 0:00:05]} e4 {[%emt 0:00:14]} 35. Be3 {[%emt 0:00:08]} Bf3 {[%emt 0:00:08]} 36. Bd2 {[%emt 0:00:07]} b4 {[%emt 0:00:13]} 37. axb4 {[%emt 0:00:12]} Ra1+ {[%emt 0:00:04]} 38. Rc1 {[%emt 0:00:07]} Rxc1+ {[%emt 0:00:05]} 39. Bxc1 {[%emt 0:00:05]} Kf5 {[%emt 0:00:04]} 40. b5 {[%emt 0:00:05]} Ke6 {[%emt 0:00:04]} 41. b6 {[%emt 0:00:06]} e3 {[%emt 0:00:04]} 42. Bxe3 {[%emt 0:00:04]} Kd6 {[%emt 0:00:04]} 43. Kf1 {[%emt 0:00:08]} Kd7 {[%emt 0:00:04]} 44. Ke1 {[%emt 0:00:06]} 1-0

[Event "Deutscher Jugend Online Cup 2020"]
[Site "Tornelo"]
[Date "2020.11.14"]
[Round "8.5"]
[White "Wartenberg, Alissa"]
[Black "Haug, Mara"]
[Result "1-0"]
[ECO "B39"]
[WhiteElo "1463"]
[BlackElo "1356"]
[Annotator "NA"]
[PlyCount "91"]
[EventDate "2020.11.13"]
[EventType "k.o."]
[SourceTitle "playchess.com"]
[Source "ChessBase"]
[SourceQuality "1"]
[TimeControl "600+3"]

1. e4 {[%emt 0:05:04]} c5 {[%emt 0:06:05]} 2. Nf3 {[%emt 0:00:06]} Nc6 {[%emt 0:00:04]} 3. d4 {[%emt 0:00:04]} cxd4 {[%emt 0:00:05]} 4. Nxd4 {[%emt 0:00:05]} g6 {[%emt 0:00:06]} 5. c4 {[%emt 0:00:06]} Bg7 {[%emt 0:00:05]} 6. Be3 {[%emt 0:00:05]} Nf6 {[%emt 0:00:05]} 7. Nc3 {[%emt 0:00:05]} Ng4 {[%emt 0:00:04]} 8. Qxg4 {[%emt 0:00:06]} Nxd4 {[%emt 0:00:05]} 9. Qd1 {[%emt 0:00:07]} Nc6 {[%emt 0:00:06]} 10. Rc1 {[%emt 0:00:16]} d6 {[%emt 0:00:05]} 11. Be2 {[%emt 0:00:15]} Be6 {[%emt 0:00:06]} 12. b3 {[%emt 0:00:12]} Qc7 {[%emt 0:00:08]} 13. Qd2 {[%emt 0:00:11]} Ne5 {[%emt 0:00:07]} 14. f3 {[%emt 0:00:18]} O-O {[%emt 0:00:08]} 15. Bh6 {[%emt 0:00:12]} Bxh6 {[%emt 0:00:05]} 16. Qxh6 {[%emt 0:00:06]} Qa5 {[%emt 0:00:04]} 17. Qd2 {[%emt 0:00:11]} Rac8 {[%emt 0:00:05]} 18. h3 {[%emt 0:00:09]} a6 {[%emt 0:00:06]} 19. g4 {[%emt 0:00:06]} f6 {[%emt 0:00:07]} 20. g5 {[%emt 0:00:16]} fxg5 {[%emt 0:00:06]} 21. Rf1 {[%emt 0:00:20]} Bxh3 {[%emt 0:00:08]} 22. Rf2 {[%emt 0:00:08]} Rf4 {[%emt 0:00:15]} 23. Nd5 {[%emt 0:00:23]} Rf7 {[%emt 0:00:10]} 24. Qxa5 {[%emt 0:00:06]} Be6 {[%emt 0:00:15]} 25. Qd2 {[%emt 0:00:11]} Rcf8 {[%emt 0:00:08]} 26. Qe3 {[%emt 0:00:13]} Bxd5 {[%emt 0:00:05]} 27. cxd5 {[%emt 0:00:06]} b5 {[%emt 0:00:18]} 28. b4 {[%emt 0:00:09]} Kg7 {[%emt 0:00:09]} 29. a3 {[%emt 0:00:05]} h6 {[%emt 0:00:06]} 30. Qc3 {[%emt 0:00:06]} Kh7 {[%emt 0:00:06]} 31. Kd1 {[%emt 0:00:12]} g4 {[%emt 0:00:05]} 32. f4 {[%emt 0:00:07]} Rxf4 {[%emt 0:00:08]} 33. Rxf4 {[%emt 0:00:06]} Rxf4 {[%emt 0:00:04]} 34. Qg3 {[%emt 0:00:08]} Rxe4 {[%emt 0:00:13]} 35. Rc7 {[%emt 0:00:20]} Rd4+ {[%emt 0:00:11]} 36. Kc2 {[%emt 0:00:14]} Rxd5 {[%emt 0:00:17]} 37. Rxe7+ {[%emt 0:00:06]} Kg8 {[%emt 0:00:07]} 38. Bxg4 {[%emt 0:00:09]} Nxg4 {[%emt 0:00:22]} 39. Qxg4 {[%emt 0:00:06]} Kf8 {[%emt 0:00:47]} 40. Qe6 {[%emt 0:00:10]} Rf5 {[%emt 0:00:05]} 41. Re8+ {[%emt 0:00:07]} Kg7 {[%emt 0:00:04]} 42. Qg8+ {[%emt 0:00:05]} Kf6 {[%emt 0:00:06]} 43. Re6+ {[%emt 0:00:05]} Kg5 {[%emt 0:00:04]} 44. Qxg6+ {[%emt 0:00:05]} Kf4 {[%emt 0:00:04]} 45. Qxh6+ {[%emt 0:00:05]} Kf3 {[%emt 0:00:05]} 46. Qh3+ {[%emt 0:00:07]} 1-0

[Event "Deutscher Jugend Online Cup 2020"]
[Site "Tornelo"]
[Date "2020.11.14"]
[Round "8.7"]
[White "Besou, Hussain"]
[Black "Goldmann, David"]
[Result "1-0"]
[ECO "D06"]
[WhiteElo "1804"]
[BlackElo "1644"]
[Annotator "NA"]
[PlyCount "37"]
[EventDate "2020.11.13"]
[EventType "k.o."]
[SourceTitle "playchess.com"]
[Source "ChessBase"]
[SourceQuality "1"]
[TimeControl "600+3"]

1. d4 {[%emt 0:05:05]} Nf6 {[%emt 0:06:10]} 2. c4 {[%emt 0:00:05]} d5 {[%emt 0:00:04]} 3. cxd5 {[%emt 0:00:04]} Qxd5 {[%emt 0:00:05]} 4. Nc3 {[%emt 0:00:05]} Qd8 {[%emt 0:00:04]} 5. e4 {[%emt 0:00:05]} e6 {[%emt 0:00:04]} 6. Be3 {[%emt 0:00:06]} Bb4 {[%emt 0:00:04]} 7. Qc2 {[%emt 0:00:06]} O-O {[%emt 0:00:04]} 8. a3 {[%emt 0:00:04]} Bxc3+ {[%emt 0:00:05]} 9. bxc3 {[%emt 0:00:05]} Bd7 {[%emt 0:00:05]} 10. Bd3 {[%emt 0:00:10]} Nc6 {[%emt 0:00:17]} 11. Ne2 {[%emt 0:00:06]} Ne7 {[%emt 0:00:04]} 12. f3 {[%emt 0:00:04]} c6 {[%emt 0:00:04]} 13. O-O {[%emt 0:00:08]} Qc7 {[%emt 0:00:05]} 14. Ng3 {[%emt 0:00:19]} Ng6 {[%emt 0:00:05]} 15. Qd2 {[%emt 0:00:11]} Rfd8 {[%emt 0:00:08]} 16. Bg5 {[%emt 0:00:07]} c5 {[%emt 0:00:11]} 17. Bxf6 {[%emt 0:00:09]} gxf6 {[%emt 0:00:07]} 18. Nh5 {[%emt 0:00:05]} f5 {[%emt 0:00:15]} 19. Qh6 {[%emt 0:00:07]} 1-0

[Event "Deutscher Jugend Online Cup 2020"]
[Site "Tornelo"]
[Date "2020.11.14"]
[Round "9.6"]
[White "von Mettenheim, Johannes"]
[Black "Costa, Leonardo"]
[Result "1-0"]
[ECO "E06"]
[WhiteElo "1995"]
[BlackElo "2165"]
[Annotator "ChessBase"]
[PlyCount "73"]
[EventDate "2020.11.13"]
[EventType "k.o."]
[SourceTitle "playchess.com"]
[Source "ChessBase"]
[SourceQuality "1"]
[TimeControl "600+3"]

1. d4 {[%emt 0:00:00]} d5 {[%emt 0:00:03]} 2. c4 {[%emt 0:00:02]} e6 {[%emt 0:00:02]} 3. g3 {[%emt 0:00:11]} Nf6 {[%emt 0:00:03]} 4. Bg2 {[%emt 0:00:06]} Be7 {[%emt 0:00:03]} 5. Nf3 {[%emt 0:00:31]} O-O {[%emt 0:00:05]} 6. O-O {[%emt 0:00:03]} c6 {[%emt 0:00:02]} 7. Nbd2 {[%emt 0:00:06]} b6 {[%emt 0:00:11]} 8. Qc2 {[%emt 0:00:07]} Bb7 {[%emt 0:00:13]} 9. e4 {[%emt 0:00:02]} Na6 {[%emt 0:00:04]} 10. e5 {[%emt 0:00:05]} Nd7 {[%emt 0:00:10]} 11. cxd5 {[%emt 0:00:08]} exd5 {[%emt 0:01:08]} 12. Re1 {[%emt 0:00:32]} Nc7 {[%emt 0:00:21]} 13. Nf1 {[%emt 0:00:07]} Ne6 {[%emt 0:00:05]} 14. Ne3 {[%emt 0:00:22]} Rc8 {[%emt 0:00:38]} 15. Nf5 {[%emt 0:00:40]} Re8 {[%emt 0:01:05]} 16. Nxe7+ {[%emt 0:01:18]} Qxe7 {[%emt 0:00:04]} 17. Be3 {[%emt 0:00:03]} c5 {[%emt 0:00:41]} 18. Qa4 {[%emt 0:00:51]} a6 {[%emt 0:00:04]} 19. Nh4 {[%emt 0:00:28]} Bc6 {[%emt 0:00:56]} 20. Qxa6 {[%emt 0:00:41]} Ra8 {[%emt 0:00:08]} 21. Qd3 {[%emt 0:00:34]} cxd4 {[%emt 0:00:19]} 22. Nf5 {[%emt 0:00:30]} Qb4 {[%emt 0:00:28]} 23. Bxd4 {[%emt 0:00:36]} Nxd4 {[%emt 0:00:53]} 24. Qxd4 {[%emt 0:00:26]} Qa5 {[%emt 0:00:49]} 25. Nd6 {[%emt 0:00:13]} Re7 {[%emt 0:00:01]} 26. Rac1 {[%emt 0:00:16]} Rd8 {[%emt 0:00:27]} 27. b4 {[%emt 0:00:16]} Qa8 {[%emt 0:00:04]} 28. b5 {[%emt 0:00:17]} Bb7 {[%emt 0:00:26]} 29. Rc7 {[%emt 0:00:03]} Rb8 {[%emt 0:00:20]} 30. Rxb7 {[%emt 0:00:33]} Rxb7 {[%emt 0:00:02]} 31. Bxd5 {[%emt 0:00:01]} Qa5 {[%emt 0:00:56]} 32. Rc1 {[%emt 0:00:28]} Rb8 {[%emt 0:00:02]} 33. Nxf7 {[%emt 0:00:25]} Rxf7 {[%emt 0:00:28]} 34. Bxf7+ {[%emt 0:00:04]} Kxf7 {[%emt 0:00:02]} 35. Qxd7+ {[%emt 0:00:01]} Kg8 {[%emt 0:00:03]} 36. Qe6+ {[%emt 0:00:07]} Kf8 {[%emt 0:00:02]} 37. Qd6+ {[%emt 0:00:02]} 1-0

[Event "Deutscher Jugend Online Cup 2020"]
[Site "Tornelo"]
[Date "2020.11.14"]
[Round "9.6"]
[White "Becker, Linda"]
[Black "Bildat, Emilia"]
[Result "1/2-1/2"]
[ECO "B23"]
[WhiteElo "1763"]
[BlackElo "1852"]
[Annotator "NA"]
[PlyCount "57"]
[EventDate "2020.11.13"]
[EventType "k.o."]
[SourceTitle "playchess.com"]
[Source "ChessBase"]
[SourceQuality "1"]
[TimeControl "600+3"]

1. e4 {[%emt 0:00:00]} c5 {[%emt 0:00:03]} 2. Nc3 {[%emt 0:00:09]} g6 {[%emt 0:00:04]} 3. f4 {[%emt 0:00:02]} Bg7 {[%emt 0:00:02]} 4. Nf3 {[%emt 0:00:07]} e6 {[%emt 0:00:07]} 5. Bb5 {[%emt 0:00:18]} Nc6 {[%emt 0:00:26]} 6. Bxc6 {[%emt 0:00:07]} bxc6 {[%emt 0:00:16]} 7. d3 {[%emt 0:00:10]} d5 {[%emt 0:00:57]} 8. O-O {[%emt 0:00:23]} Ne7 {[%emt 0:00:19]} 9. Qe1 {[%emt 0:00:36]} O-O {[%emt 0:00:33]} 10. Na4 {[%emt 0:00:12]} c4 {[%emt 0:00:24]} 11. dxc4 {[%emt 0:00:05]} Ba6 {[%emt 0:00:17]} 12. Nd2 {[%emt 0:00:27]} ({White should play} 12. e5 $14) 12... Qa5 {[%emt 0:00:28]} (12... dxe4 $5 {[%cal Rd8d4]} 13. c3 Qa5 $15) 13. Nc3 {[%emt 0:01:00]} Bxc3 {[%emt 0:00:21]} 14. bxc3 {[%emt 0:00:04]} Qxc3 {[%emt 0:00:03]} 15. Nb3 {[%emt 0:00:28]} (15. Rb1 $11) 15... Qxc4 {[%emt 0:00:33]} 16. Rf3 {[%emt 0:00:45]} Qxc2 $2 {[%emt 0:00:45]} (16... Qxe4 $17 {stays on course.} 17. Ba3 Qxe1+ 18. Rxe1 Rfe8) 17. Ba3 $18 {[%emt 0:00:42]} Rfe8 {[%emt 0:00:21]} 18. Rc3 {[%emt 0:00:39]} Qxe4 {[%emt 0:00:15]} 19. Qxe4 {[%emt 0:00:04]} dxe4 {[%emt 0:00:02]} 20. Bxe7 {[%emt 0:00:12]} Rxe7 {[%emt 0:00:02]} 21. Rxc6 {[%emt 0:00:02]} Bd3 {[%emt 0:00:09]} 22. Rac1 {[%emt 0:00:05]} e3 {[%emt 0:00:32]} 23. Re1 {[%emt 0:00:29]} Bb5 {[%emt 0:00:13]} 24. Rc5 {[%emt 0:00:08]} a6 {[%emt 0:00:09]} 25. Rxe3 {[%emt 0:00:22]} Rd7 {[%emt 0:00:08]} 26. Rec3 {[%emt 0:00:07]} Rad8 {[%emt 0:00:13]} 27. Rc8 {[%emt 0:00:12]} Rxc8 {[%emt 0:00:11]} 28. Rxc8+ {[%emt 0:00:03]} Kg7 {[%emt 0:00:01]} 29. Rc1 {[%emt 0:00:04]} 1/2-1/2

[Event "Deutscher Jugend Online Cup 2020"]
[Site "Tornelo"]
[Date "2020.11.14"]
[Round "9.6"]
[White "Sickmann, Lisa"]
[Black "Trunz, Tamila"]
[Result "0-1"]
[ECO "C77"]
[WhiteElo "1510"]
[BlackElo "1379"]
[Annotator "NA"]
[PlyCount "64"]
[EventDate "2020.11.13"]
[EventType "k.o."]
[SourceTitle "playchess.com"]
[Source "ChessBase"]
[SourceQuality "1"]
[TimeControl "600+3"]

1. e4 {[%emt 0:00:00]} e5 {[%emt 0:00:03]} 2. Nf3 {[%emt 0:00:04]} Nc6 {[%emt 0:00:03]} 3. Bb5 {[%emt 0:00:02]} a6 {[%emt 0:00:02]} 4. Ba4 {[%emt 0:00:03]} Nf6 {[%emt 0:00:06]} 5. d4 {[%emt 0:00:02]} exd4 {[%emt 0:00:08]} 6. O-O {[%emt 0:00:05]} Bc5 {[%emt 0:00:09]} 7. e5 {[%emt 0:00:05]} Nd5 {[%emt 0:00:12]} 8. c3 {[%emt 0:00:04]} Nb6 {[%emt 0:00:14]} 9. cxd4 {[%emt 0:00:11]} Nxa4 {[%emt 0:00:22]} 10. Qxa4 {[%emt 0:00:03]} b5 {[%emt 0:00:27]} 11. Qd1 {[%emt 0:00:09]} Bb6 {[%emt 0:00:04]} 12. d5 {[%emt 0:00:11]} Ne7 {[%emt 0:00:12]} 13. Bg5 {[%emt 0:00:13]} h6 {[%emt 0:00:22]} 14. Bh4 {[%emt 0:00:08]} d6 {[%emt 0:00:13]} 15. exd6 {[%emt 0:00:06]} cxd6 {[%emt 0:00:06]} 16. Re1 {[%emt 0:00:02]} f6 {[%emt 0:00:16]} 17. Qe2 {[%emt 0:00:16]} Bb7 {[%emt 0:00:10]} 18. Nc3 {[%emt 0:00:19]} b4 {[%emt 0:00:08]} 19. Ne4 {[%emt 0:01:11]} O-O {[%emt 0:00:13]} 20. Nxf6+ {[%emt 0:00:34]} gxf6 {[%emt 0:00:26]} 21. Qxe7 {[%emt 0:00:22]} Qxe7 {[%emt 0:00:14]} 22. Rxe7 {[%emt 0:00:08]} Rf7 {[%emt 0:00:04]} 23. Rxf7 {[%emt 0:00:03]} Kxf7 {[%emt 0:00:04]} 24. Rd1 {[%emt 0:00:09]} Rc8 {[%emt 0:00:08]} 25. Bg3 {[%emt 0:00:34]} Ke7 {[%emt 0:00:21]} 26. Re1+ {[%emt 0:00:30]} Kd7 {[%emt 0:00:07]} 27. Re6 {[%emt 0:00:44]} Rc1+ {[%emt 0:00:48]} 28. Ne1 {[%emt 0:00:13]} Bc5 {[%emt 0:00:24]} 29. Kf1 {[%emt 0:00:15]} Bxd5 {[%emt 0:00:07]} 30. Re2 {[%emt 0:01:10]} Bc4 {[%emt 0:00:06]} 31. b3 {[%emt 0:00:07]} Bxe2+ {[%emt 0:00:04]} 32. Kxe2 {[%emt 0:00:03]} Ra1 {[%emt 0:00:24]} 0-1

[Event "Deutscher Jugend Online Cup 2020"]
[Site "Tornelo"]
[Date "2020.11.14"]
[Round "9.6"]
[White "Buchinger, Alexis"]
[Black "Besou, Hussain"]
[Result "0-1"]
[ECO "C55"]
[WhiteElo "1496"]
[BlackElo "1804"]
[Annotator "NA"]
[PlyCount "70"]
[EventDate "2020.11.13"]
[EventType "k.o."]
[SourceTitle "playchess.com"]
[Source "ChessBase"]
[SourceQuality "1"]
[TimeControl "600+3"]

1. e4 {[%emt 0:00:00]} e5 {[%emt 0:00:09]} 2. Nf3 {[%emt 0:00:03]} Nc6 {[%emt 0:00:01]} 3. Bc4 {[%emt 0:00:02]} Nf6 {[%emt 0:00:02]} 4. d3 {[%emt 0:00:03]} h6 {[%emt 0:00:03]} 5. c3 {[%emt 0:00:03]} d6 {[%emt 0:00:02]} 6. O-O {[%emt 0:00:02]} g5 {[%emt 0:00:03]} 7. Qb3 {[%emt 0:00:10]} Qe7 {[%emt 0:00:07]} 8. Qc2 {[%emt 0:00:21]} g4 {[%emt 0:00:04]} 9. Ne1 {[%emt 0:00:06]} h5 {[%emt 0:00:07]} 10. Na3 {[%emt 0:00:14]} h4 {[%emt 0:00:03]} 11. Bg5 {[%emt 0:00:18]} Rh5 {[%emt 0:00:18]} 12. Bxf6 {[%emt 0:00:04]} Qxf6 {[%emt 0:00:04]} 13. f3 {[%emt 0:00:09]} g3 {[%emt 0:00:03]} 14. h3 {[%emt 0:00:04]} Bh6 {[%emt 0:00:07]} 15. Rd1 {[%emt 0:00:07]} Bd7 {[%emt 0:00:04]} 16. Qb3 {[%emt 0:00:11]} Na5 {[%emt 0:00:05]} 17. Qb4 {[%emt 0:00:12]} Nxc4 {[%emt 0:00:03]} 18. Qxc4 {[%emt 0:00:03]} a6 {[%emt 0:00:08]} 19. d4 {[%emt 0:00:02]} O-O-O {[%emt 0:00:15]} 20. dxe5 {[%emt 0:00:07]} Qxe5 {[%emt 0:00:12]} 21. Rd5 {[%emt 0:00:03]} Be3+ {[%emt 0:00:20]} 22. Kh1 {[%emt 0:00:03]} Be6 {[%emt 0:00:01]} 23. Rxe5 {[%emt 0:00:03]} Bxc4 {[%emt 0:00:02]} 24. Rxh5 {[%emt 0:00:15]} Bxf1 {[%emt 0:00:04]} 25. Rxh4 {[%emt 0:00:03]} d5 {[%emt 0:00:04]} 26. Nac2 {[%emt 0:00:07]} Bf2 {[%emt 0:00:03]} 27. Rf4 {[%emt 0:00:15]} dxe4 {[%emt 0:00:02]} 28. Rxe4 {[%emt 0:00:10]} Rd1 {[%emt 0:00:03]} 29. h4 {[%emt 0:00:11]} Bd3 {[%emt 0:00:06]} 30. Re7 {[%emt 0:00:28]} Bxc2 {[%emt 0:00:03]} 31. h5 {[%emt 0:00:06]} Rxe1+ {[%emt 0:00:02]} 32. Rxe1 {[%emt 0:00:03]} Bxe1 {[%emt 0:00:01]} 33. h6 {[%emt 0:00:01]} Kd7 {[%emt 0:00:04]} 34. Kg1 {[%emt 0:00:02]} Bf2+ {[%emt 0:00:02]} 35. Kf1 {[%emt 0:00:01]} Bd3# {[%emt 0:00:02]} 0-1

[Event "Deutscher Jugend Online Cup 2020"]
[Site "Tornelo"]
[Date "2020.11.14"]
[Round "9.7"]
[White "Albert, Markus"]
[Black "Bakiev, Diyor"]
[Result "0-1"]
[ECO "B11"]
[WhiteElo "1926"]
[BlackElo "2119"]
[Annotator "NA"]
[PlyCount "154"]
[EventDate "2020.11.13"]
[EventType "k.o."]
[SourceTitle "playchess.com"]
[Source "ChessBase"]
[SourceQuality "1"]
[TimeControl "600+3"]

1. e4 {[%emt 0:00:00]} c6 {[%emt 0:00:02]} 2. Nc3 {[%emt 0:00:04]} d5 {[%emt 0:00:01]} 3. Qf3 {[%emt 0:00:01]} dxe4 {[%emt 0:00:02]} 4. Nxe4 {[%emt 0:00:02]} Nd7 {[%emt 0:00:02]} 5. d4 {[%emt 0:00:06]} Ngf6 {[%emt 0:00:03]} 6. Bc4 {[%emt 0:00:02]} e6 {[%emt 0:00:02]} 7. c3 {[%emt 0:00:02]} Nxe4 {[%emt 0:00:36]} 8. Qxe4 {[%emt 0:00:02]} Nf6 {[%emt 0:00:02]} 9. Qe2 {[%emt 0:00:02]} Bd6 {[%emt 0:00:06]} 10. Nf3 {[%emt 0:00:10]} O-O {[%emt 0:00:07]} 11. Bg5 {[%emt 0:00:06]} h6 {[%emt 0:00:11]} 12. Bh4 {[%emt 0:00:16]} Be7 {[%emt 0:00:09]} 13. O-O-O {[%emt 0:00:17]} b5 {[%emt 0:00:10]} 14. Bd3 {[%emt 0:00:05]} Bb7 {[%emt 0:00:27]} 15. Rhg1 {[%emt 0:00:21]} Qd5 {[%emt 0:00:29]} 16. Kb1 {[%emt 0:00:36]} a5 {[%emt 0:00:28]} 17. g4 {[%emt 0:00:42]} g5 {[%emt 0:01:05]} 18. Bg3 {[%emt 0:00:14]} c5 {[%emt 0:00:25]} 19. Ne5 {[%emt 0:00:24]} cxd4 {[%emt 0:00:35]} 20. cxd4 {[%emt 0:00:20]} Kg7 {[%emt 0:00:27]} 21. h4 {[%emt 0:00:25]} Ne4 {[%emt 0:01:14]} 22. Bxb5 {[%emt 0:01:09]} (22. Bh2 $16) 22... Nxg3 {[%emt 0:01:27]} 23. Rxg3 {[%emt 0:00:39]} (23. fxg3 $11 Qe4+ 24. Qxe4 Bxe4+ 25. Bd3) 23... Qe4+ {[%emt 0:00:34]} 24. Qxe4 {[%emt 0:00:29]} Bxe4+ {[%emt 0:00:03]} 25. Ka1 {[%emt 0:00:01]} gxh4 {[%emt 0:00:03]} 26. Re3 {[%emt 0:00:03]} Bd5 {[%emt 0:00:08]} 27. Bc4 {[%emt 0:00:12]} Rfd8 {[%emt 0:00:10]} 28. Bf1 {[%emt 0:00:36]} Bg5 {[%emt 0:00:29]} 29. Ra3 {[%emt 0:00:23]} Bf6 {[%emt 0:00:41]} 30. Re3 {[%emt 0:01:03]} Rac8 {[%emt 0:00:11]} 31. Kb1 $19 {[%emt 0:00:15]} Bg5 {[%emt 0:00:10]} 32. Rc3 {[%emt 0:00:08]} Be4+ {[%emt 0:00:14]} 33. Ka1 {[%emt 0:00:08]} Rxc3 {[%emt 0:00:08]} 34. bxc3 {[%emt 0:00:02]} Bf6 {[%emt 0:00:01]} 35. Nc4 {[%emt 0:00:30]} a4 {[%emt 0:00:06]} 36. Kb2 {[%emt 0:00:08]} Rb8+ {[%emt 0:00:06]} 37. Ka1 {[%emt 0:00:27]} Bg5 {[%emt 0:00:12]} 38. Bd3 {[%emt 0:00:31]} Bf3 {[%emt 0:00:10]} 39. Rg1 {[%emt 0:00:19]} h3 {[%emt 0:00:01]} 40. Ne5 {[%emt 0:00:08]} Bd5 {[%emt 0:00:11]} 41. c4 {[%emt 0:00:07]} f6 {[%emt 0:00:01]} 42. cxd5 {[%emt 0:00:02]} fxe5 {[%emt 0:00:01]} 43. dxe6 {[%emt 0:00:11]} Bf6 {[%emt 0:00:04]} 44. a3 {[%emt 0:00:21]} e4 {[%emt 0:00:05]} 45. Bxe4 {[%emt 0:00:03]} Bxd4+ {[%emt 0:00:03]} 46. Ka2 {[%emt 0:00:01]} Rb2+ {[%emt 0:00:02]} 47. Ka1 {[%emt 0:00:05]} Re2+ {[%emt 0:00:06]} 48. Kb1 {[%emt 0:00:02]} Rxe4 {[%emt 0:00:02]} 49. Rh1 {[%emt 0:00:01]} Rxe6 {[%emt 0:00:05]} 50. Rxh3 {[%emt 0:00:02]} Bxf2 {[%emt 0:00:03]} 51. Rf3 {[%emt 0:00:02]} Bc5 {[%emt 0:00:02]} 52. Rf4 {[%emt 0:00:05]} Bd6 {[%emt 0:00:03]} 53. Rxa4 {[%emt 0:00:01]} Re3 {[%emt 0:00:03]} 54. Ra7+ {[%emt 0:00:02]} Kf6 {[%emt 0:00:01]} 55. a4 {[%emt 0:00:01]} Kg5 {[%emt 0:00:04]} 56. Rg7+ {[%emt 0:00:03]} Kf6 {[%emt 0:00:03]} 57. Ra7 {[%emt 0:00:03]} Bf4 {[%emt 0:00:02]} 58. a5 {[%emt 0:00:02]} Kg5 {[%emt 0:00:04]} 59. Rg7+ {[%emt 0:00:02]} Kh4 {[%emt 0:00:01]} 60. a6 {[%emt 0:00:03]} Ra3 {[%emt 0:00:02]} 61. Ra7 {[%emt 0:00:03]} Kxg4 {[%emt 0:00:04]} 62. Kb2 {[%emt 0:00:01]} Ra5 {[%emt 0:00:02]} 63. Kb3 {[%emt 0:00:02]} h5 {[%emt 0:00:02]} 64. Kb4 {[%emt 0:00:01]} Ra1 {[%emt 0:00:01]} 65. Rg7+ {[%emt 0:00:01]} Kh3 {[%emt 0:00:04]} 66. a7 {[%emt 0:00:01]} Be3 {[%emt 0:00:03]} 67. Rh7 {[%emt 0:00:06]} h4 {[%emt 0:00:02]} 68. Rd7 {[%emt 0:00:03]} Bxa7 {[%emt 0:00:04]} 69. Kc3 {[%emt 0:00:03]} Kg2 {[%emt 0:00:04]} 70. Rg7+ {[%emt 0:00:02]} Kh3 {[%emt 0:00:04]} 71. Kd3 {[%emt 0:00:01]} Bf2 {[%emt 0:00:02]} 72. Ke2 {[%emt 0:00:02]} Bg3 {[%emt 0:00:02]} 73. Rh7 {[%emt 0:00:04]} Ra2+ {[%emt 0:00:02]} 74. Kf3 {[%emt 0:00:02]} Rf2+ {[%emt 0:00:02]} 75. Ke3 {[%emt 0:00:01]} Kg2 {[%emt 0:00:02]} 76. Rg7 {[%emt 0:00:15]} Rf6 {[%emt 0:00:04]} 77. Rh7 {[%emt 0:00:03]} h3 {[%emt 0:00:01]} 0-1